bitfinex-derivatives/quotes_BTCF0:USTF0_20240829
["timestamp","ask_amount","ask_price","bid_price","bid_amount"]
[1724904560041,0.09528687,59213.0,59212.0,0.734063]
[1724904560251,0.00640587,59213.0,59212.0,0.734063]
[1724904560550,8.7e-07,59213.0,59212.0,0.734063]
[1724904561545,8.7e-07,59213.0,59212.0,1.840703]
[1724904563539,8.7e-07,59213.0,59212.0,1.854213]
[1724904565343,0.12,59235.0,59212.0,1.685371]
[1724904565550,0.08439,59234.0,59231.0,0.12]
[1724904565743,0.17985798,59233.0,59232.0,0.084392]
[1724904565948,0.31854798,59234.0,59233.0,0.084391]
[1724904566150,0.13869,59234.0,59233.0,0.084391]
[1724904566352,0.32921899,59234.0,59233.0,0.084391]
[1724904566745,0.39111899,59234.0,59233.0,0.084391]
[1724904567253,0.39111899,59234.0,59233.0,0.085391]
[1724904567254,0.38211899,59234.0,59233.0,0.085391]
[1724904567447,0.39111899,59234.0,59233.0,0.085391]
[1724904568551,0.40411899,59234.0,59233.0,0.086391]
[1724904569552,0.40311899,59234.0,59233.0,0.086391]
[1724904570051,0.39511899,59234.0,59233.0,0.085391]
[1724904570244,0.40411899,59234.0,59233.0,0.086391]
[1724904570450,0.39711899,59234.0,59233.0,0.086391]
[1724904571150,0.44741899,59234.0,59233.0,0.086391]
[1724904571348,0.44941899,59234.0,59233.0,0.086391]
[1724904572447,0.56941899,59234.0,59233.0,0.086391]
[1724904572647,0.43472899,59234.0,59233.0,0.086391]
[1724904573852,0.43172899,59234.0,59233.0,0.086391]
[1724904574156,0.42372899,59234.0,59233.0,0.085391]
[1724904574359,0.42572899,59234.0,59233.0,0.085391]
[1724904574547,0.43072899,59234.0,59233.0,0.086391]
[1724904587172,0.42272899,59234.0,59233.0,0.085391]
[1724904587373,0.42372899,59234.0,59233.0,0.085391]
[1724904588872,0.42472899,59234.0,59233.0,0.085391]
[1724904589374,0.42472899,59234.0,59233.0,0.084391]
[1724904589375,0.41972899,59234.0,59233.0,0.084391]
[1724904589570,0.42072899,59234.0,59233.0,0.084391]
[1724904589773,0.42272899,59234.0,59233.0,0.084391]
[1724904590465,0.30272899,59234.0,59233.0,0.084391]
[1724904590666,0.25082899,59234.0,59233.0,0.084391]
[1724904590862,0.19652899,59234.0,59233.0,0.253173]
[1724904591066,0.19652899,59234.0,59233.0,0.304973]
[1724904592369,0.19652899,59234.0,59233.0,0.084391]
[1724904592570,0.19752899,59234.0,59233.0,0.084391]
[1724904593376,0.19452899,59234.0,59233.0,0.084391]
[1724904593577,0.19752899,59234.0,59233.0,0.084391]
[1724904593969,0.19852899,59234.0,59233.0,0.084391]
[1724904594270,0.19952899,59234.0,59233.0,0.084391]
[1724904596066,0.19552899,59234.0,59233.0,0.084391]
[1724904596267,0.19852899,59234.0,59233.0,0.084391]
[1724904596965,0.19352899,59234.0,59233.0,0.084391]
[1724904597172,0.19752899,59234.0,59233.0,0.084391]
[1724904603075,0.19852899,59234.0,59233.0,0.084391]
[1724904603274,0.19952899,59234.0,59233.0,0.084391]
[1724904603774,0.19552899,59234.0,59233.0,0.084391]
[1724904603979,0.19752899,59234.0,59233.0,0.084391]
[1724904604174,0.19752899,59234.0,59232.0,0.3608]
[1724904604378,0.084398,59228.0,59227.0,0.00025324]
[1724904604579,0.194398,59228.0,59227.0,0.08465224]
[1724904604882,0.38789462,59228.0,59227.0,0.08465224]
[1724904606575,0.38789462,59228.0,59227.0,0.08565224]
[1724904606783,0.38989462,59228.0,59227.0,0.08565224]
[1724904607383,0.39089462,59228.0,59227.0,0.08465224]
[1724904609079,0.42118352,59228.0,59227.0,0.08465224]
[1724904609688,0.42118352,59228.0,59227.0,0.00025324]
[1724904613690,0.084399,59227.0,59219.0,0.084409]
[1724904613882,0.084412,59218.0,59217.0,0.40436727]
[1724904614287,0.27653389,59218.0,59217.0,0.40436727]
[1724904614889,0.26953389,59218.0,59217.0,0.40436727]
[1724904615689,0.26153389,59218.0,59217.0,0.31995327]
[1724904617082,0.26353389,59218.0,59217.0,0.33895327]
[1724904617288,0.08041501,59218.0,59217.0,0.33895327]
[1724904617483,0.16482701,59218.0,59217.0,0.42336727]
[1724904617684,0.11145417,59218.0,59217.0,0.54336727]
[1724904618988,0.11145417,59218.0,59217.0,0.223414]
[1724904621896,0.11145417,59218.0,59217.0,0.584214]
[1724904622797,0.11145417,59218.0,59217.0,0.668628]
[1724904623103,0.08041501,59218.0,59217.0,0.668628]
[1724904630110,0.08041501,59218.0,59217.0,0.753042]
[1724904630906,0.08041501,59218.0,59217.0,0.392242]
[1724904631106,0.08041501,59218.0,59217.0,0.753042]
[1724904639705,0.08041501,59218.0,59217.0,0.464214]
[1724904639907,0.16482701,59218.0,59217.0,0.464214]
[1724904640101,0.22092701,59218.0,59217.0,0.464214]
[1724904640913,0.22092701,59218.0,59217.0,0.584214]
[1724904641108,0.08041501,59218.0,59217.0,0.584214]
[1724904643822,0.08041501,59218.0,59217.0,0.223414]
[1724904644721,0.07941501,59218.0,59217.0,0.213414]
[1724904645014,0.07941501,59218.0,59217.0,0.216414]
[1724904645218,0.07941501,59218.0,59217.0,0.207414]
[1724904646513,0.06696935,59224.0,59223.0,0.084405]
[1724904646916,0.24332352,59224.0,59223.0,0.084405]
[1724904647310,0.25156393,59224.0,59223.0,0.084405]
[1724904647812,0.25956393,59224.0,59223.0,0.085405]
[1724904648410,0.26856393,59224.0,59223.0,0.086405]
[1724904648721,0.29971679,59224.0,59223.0,0.086405]
[1724904649621,0.23274744,59224.0,59223.0,0.086405]
[1724904650724,0.22474744,59224.0,59223.0,0.085405]
[1724904650915,0.23274744,59224.0,59223.0,0.086405]
[1724904651509,0.22474744,59224.0,59223.0,0.085405]
[1724904651714,0.22874744,59224.0,59223.0,0.085405]
[1724904653123,0.22474744,59224.0,59223.0,0.085405]
[1724904653327,0.23274744,59224.0,59223.0,0.086405]
[1724904657128,0.22450703,59224.0,59223.0,0.29081]
[1724904657424,0.19335417,59224.0,59223.0,0.375215]
[1724904657935,0.19335417,59224.0,59223.0,0.537315]
[1724904662030,0.19335417,59224.0,59223.0,0.483815]
[1724904662233,0.19335417,59224.0,59223.0,0.375215]
[1724904665027,0.19335417,59224.0,59223.0,0.736015]
[1724904666734,0.17835417,59224.0,59223.0,0.734015]
[1724904667435,0.17935417,59224.0,59223.0,0.734015]
[1724904667638,0.04930551,59226.0,59225.0,0.084402]
[1724904668021,0.23517884,59226.0,59225.0,0.084402]
[1724904668228,0.23517884,59226.0,59225.0,0.445202]
[1724904668821,0.24217884,59226.0,59225.0,0.446202]
[1724904669537,0.24217884,59226.0,59225.0,0.566202]
[1724904669732,0.2730326,59226.0,59225.0,0.566202]
[1724904670123,0.2790326,59226.0,59225.0,0.567202]
[1724904670442,0.2790326,59226.0,59225.0,0.206402]
[1724904670626,0.2790326,59226.0,59225.0,0.086402]
[1724904670833,0.8086346,59226.0,59225.0,0.002]
[1724904671060,0.8657346,59226.0,59225.0,0.002]
[1724904671733,0.7813336,59226.0,59225.0,0.002]
[1724904675030,1.2878536,59226.0,59225.0,0.002]
[1724904676034,0.7813336,59226.0,59225.0,0.002]
[1724904676836,1.2878536,59226.0,59225.0,0.002]
[1724904677133,0.7813336,59226.0,59225.0,0.002]
[1724904677433,1.2878536,59226.0,59225.0,0.002]
[1724904677834,0.7813336,59226.0,59225.0,0.002]
[1724904678035,1.2878536,59226.0,59225.0,0.002]
[1724904678342,0.7813336,59226.0,59225.0,0.002]
[1724904682641,0.7242336,59226.0,59225.0,0.002]
[1724904683943,0.7242336,59226.0,59225.0,0.086402]
[1724904686232,1.2307536,59226.0,59221.0,0.084407]
[1724904686537,0.084412,59219.0,59218.0,0.084412]
[1724904686734,0.084412,59219.0,59210.0,0.12]
[1724904686735,0.084415,59217.0,59210.0,0.12]
[1724904687037,0.29568676,59216.0,59210.0,0.12]
[1724904687739,0.65648676,59216.0,59215.0,0.084415]
[1724904687941,0.66916153,59216.0,59215.0,0.084415]
[1724904689442,0.67016153,59216.0,59215.0,0.084415]
[1724904689637,0.75457653,59216.0,59215.0,0.088415]
[1724904690145,0.75357653,59216.0,59215.0,0.093415]
[1724904691550,0.75357653,59216.0,59215.0,0.089415]
[1724904692247,0.39277653,59216.0,59215.0,0.089415]
[1724904692442,0.38010176,59216.0,59215.0,0.089415]
[1724904692644,0.38010176,59216.0,59215.0,0.085415]
[1724904693042,0.084419,59213.0,59212.0,0.00025324]
[1724904693344,0.084419,59213.0,59203.0,0.3608]
[1724904693345,0.55094703,59213.0,59203.0,0.445232]
[1724904693642,0.204432,59204.0,59203.0,0.445232]
[1724904694041,0.39457903,59204.0,59203.0,0.445232]
[1724904694742,0.17091853,59204.0,59203.0,0.445232]
[1724904694945,0.29091853,59204.0,59203.0,0.445232]
[1724904695351,0.29191853,59204.0,59203.0,0.459232]
[1724904695541,0.37635053,59204.0,59203.0,0.459232]
[1724904695737,0.37235053,59204.0,59203.0,0.459232]
[1724904697142,0.37335053,59204.0,59203.0,0.467232]
[1724904697652,0.37335053,59204.0,59203.0,0.587232]
[1724904697653,0.19859851,59204.0,59203.0,0.587232]
[1724904699343,0.19859851,59204.0,59203.0,0.226432]
[1724904700352,0.19859851,59204.0,59203.0,0.022]
[1724904700353,0.40303051,59204.0,59203.0,0.022]
[1724904709449,0.40303051,59204.0,59203.0,0.106434]
[1724904721658,0.31859851,59204.0,59203.0,0.106434]
[1724904729862,0.19859851,59204.0,59203.0,0.106434]
[1724904730068,0.19859851,59204.0,59203.0,0.226434]
[1724904730863,0.16891853,59204.0,59203.0,0.310868]
[1724904732466,0.16891853,59204.0,59203.0,0.34061388]
[1724904732666,0.16891853,59204.0,59203.0,0.310868]
[1724904734871,0.16891853,59204.0,59203.0,0.671668]
[1724904737766,0.16891853,59204.0,59203.0,0.756102]
[1724904737979,0.16891853,59204.0,59203.0,1.862822]
[1724904740469,0.16891853,59204.0,59203.0,1.262822]
[1724904740878,0.08012605,59204.0,59203.0,1.947256]
[1724904741184,0.00025324,59218.0,59217.0,0.084414]
[1724904741382,0.00025324,59218.0,59217.0,0.565214]
[1724904741592,0.18023645,59218.0,59217.0,0.565214]
[1724904742478,0.18223645,59218.0,59217.0,0.565214]
[1724904742684,0.18523645,59218.0,59217.0,0.565214]
[1724904742884,0.18523645,59218.0,59217.0,0.649628]
[1724904744874,0.18523645,59218.0,59217.0,0.288828]
[1724904745072,0.18523645,59218.0,59217.0,0.649628]
[1724904755293,0.18523645,59218.0,59217.0,0.445214]
[1724904755489,0.18523645,59218.0,59217.0,0.565214]
[1724904765393,0.18323645,59218.0,59217.0,0.565214]
[1724904765592,0.18023645,59218.0,59217.0,0.565214]
[1724904767897,0.18023645,59218.0,59217.0,0.204414]
[1724904768098,0.18023645,59218.0,59217.0,0.565214]
[1724904768297,0.18023645,59218.0,59217.0,0.649628]
[1724904770491,0.18023645,59218.0,59217.0,0.288828]
[1724904770895,0.18023645,59218.0,59217.0,0.649628]
[1724904772902,0.18023645,59218.0,59217.0,0.529628]
[1724904773197,0.18023645,59218.0,59217.0,0.649628]
[1724904773602,0.18023645,59218.0,59217.0,0.734042]
[1724904777904,0.18023645,59218.0,59217.0,0.373242]
[1724904778105,0.18023645,59218.0,59217.0,1.094842]
[1724904780099,0.18023645,59218.0,59217.0,0.373242]
[1724904780409,0.18023645,59218.0,59217.0,1.094842]
[1724904781508,0.18023645,59218.0,59217.0,1.099842]
[1724904783003,0.18123645,59218.0,59217.0,1.105842]
[1724904783507,0.18023645,59218.0,59217.0,1.099842]
[1724904783701,0.18023645,59218.0,59217.0,1.103842]
[1724904788913,0.18023645,59218.0,59217.0,0.978842]
[1724904789109,0.18023645,59218.0,59217.0,1.102842]
[1724904789912,0.02750385,59218.0,59217.0,1.102842]
[1724904790219,0.02750385,59218.0,59217.0,1.101842]
[1724904790915,0.02750385,59218.0,59217.0,0.981842]
[1724904791105,0.02750385,59218.0,59217.0,1.101842]
[1724904791699,0.02750385,59218.0,59217.0,0.741042]
[1724904791911,0.02750385,59218.0,59217.0,0.656628]
[1724904793416,0.02750385,59218.0,59217.0,0.654628]
[1724904794711,0.02750385,59218.0,59217.0,0.570214]
[1724904795403,0.02750385,59218.0,59217.0,0.566214]
[1724904795607,0.02750385,59218.0,59217.0,0.567214]
[1724904796416,0.02750385,59218.0,59217.0,0.569214]
[1724904796916,0.02750385,59218.0,59217.0,0.566214]
[1724904797217,0.02750385,59218.0,59217.0,0.567214]
[1724904802716,0.02750385,59218.0,59217.0,0.651628]
[1724904813525,0.02750385,59218.0,59217.0,0.290828]
[1724904813716,0.02750385,59218.0,59217.0,0.651628]
[1724904815528,0.02750385,59218.0,59217.0,0.736042]
[1724904817217,0.02750385,59218.0,59217.0,0.651628]
[1724904817415,0.02750385,59218.0,59217.0,0.736042]
[1724904817931,0.02750385,59218.0,59217.0,0.616042]
[1724904818127,0.02750385,59218.0,59217.0,0.736042]
[1724904818327,0.02750385,59218.0,59217.0,0.651628]
[1724904818527,0.02750385,59218.0,59217.0,0.290828]
[1724904819025,0.52935212,59231.0,59230.0,0.084395]
[1724904819230,1.03583212,59231.0,59230.0,0.084395]
[1724904819733,1.24407781,59231.0,59230.0,0.084395]
[1724904819933,0.87060522,59231.0,59230.0,0.084395]
[1724904820124,1.83140522,59231.0,59230.0,0.084395]
[1724904820328,1.84440522,59231.0,59230.0,0.085395]
[1724904820826,1.48360522,59231.0,59230.0,0.085395]
[1724904821031,1.85540522,59231.0,59230.0,0.086395]
[1724904821333,1.88554413,59231.0,59230.0,0.086395]
[1724904822325,1.99824413,59231.0,59230.0,0.086395]
[1724904823039,1.99824413,59231.0,59230.0,0.002]
[1724904823529,0.79911057,59231.0,59216.0,0.31432715]
[1724904823734,0.12,59217.0,59206.0,0.12]
[1724904823922,0.12,59208.0,59202.0,0.31432715]
[1724904824132,0.3608,59203.0,59202.0,0.39876215]
[1724904824340,0.3608,59203.0,59202.0,0.084435]
[1724904824636,0.67565869,59203.0,59202.0,0.084435]
[1724904824937,0.55565869,59203.0,59202.0,0.084435]
[1724904825127,0.55365869,59203.0,59202.0,0.084435]
[1724904825439,0.55365869,59203.0,59202.0,0.204435]
[1724904825440,0.55165869,59203.0,59202.0,0.204435]
[1724904825845,0.55265869,59203.0,59202.0,0.218435]
[1724904826335,0.55365869,59203.0,59202.0,0.223435]
[1724904833031,0.58332864,59203.0,59202.0,0.223435]
[1724904835835,0.22652864,59203.0,59202.0,0.223435]
[1724904836239,0.04896914,59203.0,59202.0,0.223435]
[1724904838744,0.01929919,59203.0,59202.0,0.223435]
[1724904841453,0.01929919,59203.0,59192.0,0.01217]
[1724904841454,1.00685919,59203.0,59192.0,0.01217]
[1724904841648,0.12,59193.0,59184.0,0.084461]
[1724904841842,0.084459,59186.0,59182.0,0.12]
[1724904842043,0.12,59183.0,59180.0,0.084466]
[1724904842352,0.3608,59181.0,59180.0,0.084466]
[1724904842746,0.54575276,59181.0,59180.0,0.084466]
[1724904844158,0.54575276,59181.0,59176.0,0.1769]
[1724904844363,0.54575276,59181.0,59175.0,0.08472646]
[1724904844364,0.204471,59177.0,59175.0,0.00025346]
[1724904844561,0.3608,59176.0,59175.0,0.00025346]
[1724904844770,0.55000461,59176.0,59175.0,0.00025346]
[1724904845059,0.63447661,59176.0,59175.0,0.00025346]
[1724904845964,0.63547661,59176.0,59175.0,0.00025346]
[1724904848268,0.63647661,59176.0,59175.0,0.00025346]
[1724904851369,0.99727661,59176.0,59175.0,0.00025346]
[1724904856273,0.27567661,59176.0,59175.0,0.00025346]
[1724904856474,0.99727661,59176.0,59175.0,0.00025346]
[1724904857967,1.58870861,59176.0,59175.0,0.00025346]
[1724904858167,1.08174861,59176.0,59175.0,0.00025346]
[1724904858366,2.27318061,59176.0,59163.0,0.31432715]
[1724904858583,0.084493,59162.0,59160.0,0.140994]
[1724904858768,0.12,59161.0,59160.0,0.140994]
[1724904858969,0.39729437,59161.0,59160.0,0.140994]
[1724904859168,0.39729437,59161.0,59157.0,0.0549]
[1724904859169,0.084498,59158.0,59157.0,0.0549]
[1724904859379,0.41480305,59158.0,59157.0,0.0549]
[1724904859679,0.60760342,59158.0,59157.0,0.0549]
[1724904860578,0.60860342,59158.0,59157.0,0.139399]
[1724904860977,0.60960342,59158.0,59157.0,0.139399]
[1724904861566,0.39929837,59158.0,59157.0,0.139399]
[1724904861980,0.27929837,59158.0,59157.0,0.139399]
[1724904862485,0.19480037,59158.0,59157.0,0.139399]
[1724904863472,0.19480037,59158.0,59157.0,0.646519]
[1724904864484,0.19480037,59158.0,59157.0,0.67691774]
[1724904865279,0.19480037,59158.0,59157.0,1.36141674]
[1724904865474,0.10350037,59158.0,59157.0,1.36141674]
[1724904866585,0.10250037,59158.0,59157.0,1.36141674]
[1724904866881,0.10350037,59158.0,59157.0,1.36141674]
[1724904867588,0.10350037,59158.0,59157.0,2.08301674]
[1724904868586,0.10350037,59158.0,59157.0,1.48301674]
[1724904869984,0.10350037,59158.0,59157.0,1.56751574]
[1724904870885,0.10350037,59158.0,59157.0,1.537117]
[1724904871078,0.10350037,59158.0,59157.0,1.029997]
[1724904872575,0.10350037,59158.0,59157.0,1.537117]
[1724904873286,0.10350037,59158.0,59157.0,1.029997]
[1724904873984,0.10350037,59158.0,59157.0,0.975097]
[1724904882993,0.10250037,59158.0,59157.0,0.975097]
[1724904883196,0.10350037,59158.0,59157.0,0.981097]
[1724904883785,0.10250037,59158.0,59157.0,0.979097]
[1724904883990,0.10250037,59158.0,59157.0,1.101097]
[1724904884293,0.10150037,59158.0,59157.0,1.101097]
[1724904885486,0.10150037,59158.0,59157.0,0.981097]
[1724904885892,0.10150037,59158.0,59157.0,1.101097]
[1724904886090,0.10150037,59158.0,59157.0,1.097097]
[1724904886294,0.10150037,59158.0,59157.0,1.099097]
[1724904886589,0.10150037,59158.0,59157.0,1.097097]
[1724904886795,0.10150037,59158.0,59157.0,1.101097]
[1724904887288,0.10150037,59158.0,59157.0,1.014598]
[1724904887995,0.10150037,59158.0,59157.0,1.012598]
[1724904890694,0.10150037,59158.0,59157.0,0.651798]
[1724904892400,0.10150037,59158.0,59157.0,0.567299]
[1724904894290,0.10150037,59158.0,59157.0,0.447299]
[1724904897200,0.21720037,59158.0,59157.0,0.447299]
[1724904897794,0.30169837,59158.0,59157.0,0.447299]
[1724904897995,0.21720037,59158.0,59157.0,0.447299]
[1724904898297,0.10150037,59158.0,59157.0,0.447299]
[1724904898899,0.10150037,59158.0,59157.0,0.504699]
[1724904905396,0.10150037,59158.0,59157.0,0.447299]
[1724904908801,0.10150037,59158.0,59157.0,0.505699]
[1724904911709,0.10150037,59158.0,59157.0,0.447299]
[1724904916916,0.10150037,59158.0,59157.0,0.531798]
[1724904919415,0.10150037,59158.0,59157.0,0.567299]
[1724904920117,0.10150037,59158.0,59157.0,0.447299]
[1724904923324,0.591659,59157.0,59125.0,0.3608]
[1724904923509,0.3608,59130.0,59126.0,0.00088]
[1724904923709,0.3608,59130.0,59129.0,0.084539]
[1724904924010,0.3608,59130.0,59122.0,0.4713]
[1724904924011,0.5409644,59130.0,59126.0,0.084544]
[1724904924207,0.5409644,59130.0,59122.0,0.4713]
[1724904924519,0.5409644,59130.0,59125.0,0.012]
[1724904924814,0.5409644,59130.0,59125.0,0.017]
[1724904925413,0.5409644,59130.0,59125.0,0.012]
[1724904925414,0.5419644,59130.0,59125.0,0.012]
[1724904926214,0.1821644,59130.0,59129.0,0.084539]
[1724904926610,0.1821644,59130.0,59129.0,0.139539]
[1724904926910,0.1811644,59130.0,59129.0,0.195339]
[1724904927109,0.1821644,59130.0,59129.0,0.195339]
[1724904927309,0.1811644,59130.0,59129.0,0.702699]
[1724904927510,0.1821644,59130.0,59129.0,0.714699]
[1724904927710,0.1821644,59130.0,59129.0,1.314699]
[1724904927917,0.0912644,59130.0,59129.0,1.316699]
[1724904928517,0.084513,59148.0,59130.0,0.50736]
[1724904928713,0.084513,59148.0,59129.0,0.7248]
[1724904928714,0.084513,59148.0,59142.0,0.3608]
[1724904928915,0.17695289,59145.0,59137.0,0.29]
[1724904929111,0.17695289,59147.0,59137.0,0.29]
[1724904929318,0.3608,59148.0,59142.0,0.3608]
[1724904929517,0.3608,59148.0,59143.0,0.084519]
[1724904929816,0.19269923,59147.0,59143.0,0.084519]
[1724904930219,0.3618,59148.0,59143.0,0.084519]
[1724904930420,0.17959056,59147.0,59143.0,0.084519]
[1724904930714,0.17959056,59147.0,59142.0,0.3608]
[1724904930715,0.17959056,59147.0,59144.0,0.084518]
[1724904931113,0.18159056,59147.0,59144.0,0.084518]
[1724904931810,0.18259056,59147.0,59144.0,0.084518]
[1724904932417,0.18559056,59147.0,59144.0,0.084518]
[1724904932814,0.18259056,59147.0,59144.0,0.084518]
[1724904933113,0.18659056,59147.0,59144.0,0.084518]
[1724904935212,0.18659056,59147.0,59146.0,0.084515]
[1724904935710,0.18659056,59147.0,59146.0,0.16903]
[1724904936016,0.00025368,59151.0,59150.0,0.084509]
[1724904936318,0.17686729,59151.0,59150.0,0.735309]
[1724904937120,0.17686729,59151.0,59150.0,0.738309]
[1724904937916,0.17886729,59151.0,59150.0,0.820818]
[1724904938219,0.01268602,59169.0,59150.0,1.759]
[1724904938521,0.17839567,59165.0,59158.0,0.3608]
[1724904938710,0.17839567,59165.0,59159.0,0.056]
[1724904938911,0.369108,59170.0,59159.0,0.056]
[1724904939110,0.18505267,59169.0,59167.0,0.084484]
[1724904939309,0.36936168,59170.0,59167.0,0.084484]
[1724904939712,0.18605267,59169.0,59167.0,0.084484]
[1724904940017,0.18605267,59169.0,59168.0,0.084484]
[1724904940318,0.19105267,59169.0,59168.0,0.084484]
[1724904940714,0.18505267,59169.0,59168.0,0.084484]
[1724904941021,0.19105267,59169.0,59168.0,0.084484]
[1724904941212,0.20005267,59169.0,59167.0,0.002]
[1724904942614,0.20305267,59169.0,59168.0,0.001]
[1724904943009,0.28553467,59169.0,59168.0,0.002]
[1724904943417,0.28553467,59169.0,59168.0,0.001]
[1724904943819,0.29053467,59169.0,59168.0,0.001]
[1724904944018,0.28153467,59169.0,59168.0,0.001]
[1724904944219,0.29053467,59169.0,59168.0,0.002]
[1724904944620,0.29253467,59169.0,59168.0,0.002]
[1724904945725,0.29353467,59169.0,59168.0,0.002]
[1724904946216,0.28353467,59169.0,59168.0,0.001]
[1724904946416,0.27953467,59169.0,59168.0,0.001]
[1724904946612,0.29253467,59169.0,59168.0,0.002]
[1724904947220,0.27953467,59169.0,59168.0,0.001]
[1724904947417,0.29353467,59169.0,59168.0,0.002]
[1724904954125,0.084484,59168.0,59161.0,0.3608]
[1724904954327,0.084484,59168.0,59166.0,0.084485]
[1724904954526,0.18640177,59167.0,59166.0,0.084485]
[1724904955928,0.18640177,59167.0,59166.0,0.085485]
[1724904956329,0.19840177,59167.0,59166.0,0.086485]
[1724904956530,0.20940177,59167.0,59166.0,0.086485]
[1724904957728,0.04004969,59167.0,59166.0,0.086485]
[1724904957929,0.07106033,59167.0,59166.0,0.086485]
[1724904958123,0.15554533,59167.0,59166.0,0.086485]
[1724904964934,0.011,59167.0,59166.0,0.447285]
[1724904965140,0.084468,59179.0,59167.0,0.084485]
[1724904965325,0.084468,59179.0,59173.0,0.29]
[1724904965525,0.084468,59179.0,59178.0,0.084469]
[1724904965930,0.26944529,59179.0,59178.0,0.084469]
[1724904966338,0.28344529,59179.0,59178.0,0.084469]
[1724904966733,0.29444529,59179.0,59178.0,0.085469]
[1724904967741,0.28044529,59179.0,59178.0,0.085469]
[1724904967937,0.28744529,59179.0,59178.0,0.086469]
[1724904968741,0.28744529,59179.0,59178.0,0.084469]
[1724904968742,0.26944529,59179.0,59178.0,0.084469]
[1724904968940,0.18497729,59179.0,59178.0,0.086469]
[1724904969334,0.18253994,59181.0,59179.0,0.084467]
[1724904969533,0.48516487,59182.0,59179.0,0.084467]
[1724904969734,0.48408487,59182.0,59179.0,0.084467]
[1724904969933,0.18253994,59181.0,59180.0,0.084466]
[1724904971029,0.18953994,59181.0,59180.0,0.084466]
[1724904971843,0.18953994,59181.0,59180.0,0.085466]
[1724904972343,0.18953994,59181.0,59180.0,0.086466]
[1724904974047,0.19801121,59181.0,59180.0,0.086466]
[1724904974438,0.18953994,59181.0,59180.0,0.086466]
[1724904974633,0.04943424,59181.0,59180.0,0.255398]
[1724904974837,0.00025368,59184.0,59183.0,0.168924]
[1724904975144,0.1797829,59184.0,59183.0,0.529724]
[1724904975543,0.1797829,59184.0,59183.0,1.636604]
[1724904976047,0.1797829,59184.0,59183.0,1.641604]
[1724904977043,0.1797829,59184.0,59183.0,1.557142]
[1724904977359,0.5405829,59184.0,59183.0,0.005]
[1724904978347,0.5405829,59184.0,59183.0,0.002]
[1724904978546,0.1797829,59184.0,59183.0,0.086462]
[1724904979048,0.1797829,59184.0,59183.0,0.085462]
[1724904979259,0.1797829,59184.0,59183.0,0.086462]
[1724904979845,0.1797829,59184.0,59183.0,0.447262]
[1724904980858,0.1797829,59184.0,59183.0,0.446262]
[1724904981549,0.1797829,59184.0,59183.0,0.447262]
[1724904982255,0.1797829,59184.0,59183.0,0.448262]
[1724904982550,0.1797829,59184.0,59183.0,0.447262]
[1724904983750,0.1797829,59184.0,59183.0,0.445262]
[1724904984553,0.1797829,59184.0,59183.0,0.447262]
[1724904985955,0.1797829,59184.0,59183.0,0.531724]
[1724904986859,0.1797829,59184.0,59183.0,1.641604]
[1724904988454,0.1797829,59184.0,59183.0,1.041604]
[1724904988661,0.1797829,59184.0,59183.0,1.641604]
[1724904989357,0.3608,59197.0,59183.0,1.641604]
[1724904989563,0.00108,59202.0,59201.0,0.084436]
[1724904989859,0.4225,59207.0,59201.0,0.084436]
[1724904989860,0.084432,59205.0,59201.0,0.084436]
[1724904990060,0.19511244,59202.0,59201.0,0.084436]
[1724904990256,0.18509596,59204.0,59201.0,0.084436]
[1724904990449,0.42362001,59207.0,59206.0,0.084429]
[1724904990652,0.452554,59207.0,59206.0,0.084429]
[1724904990864,0.63764996,59207.0,59206.0,0.084429]
[1724904992663,0.63764996,59207.0,59206.0,0.085429]
[1724904993167,0.63764996,59207.0,59206.0,0.086429]
[1724904994666,0.63764996,59207.0,59206.0,0.002]
[1724904994959,0.72207796,59207.0,59206.0,0.002]
[1724904995557,0.084441,59198.0,59177.0,0.3608]
[1724904995769,0.6508,59188.0,59166.0,0.357]
[1724904995957,0.3608,59175.0,59171.0,0.084479]
[1724904996371,0.17984623,59174.0,59171.0,0.084479]
[1724904996859,0.25532123,59174.0,59171.0,0.084479]
[1724904997063,0.25532123,59174.0,59167.0,0.00025346]
[1724904997064,0.084478,59172.0,59167.0,0.00025346]
[1724904997363,0.3608,59170.0,59167.0,0.00025346]
[1724904997561,0.3588,59170.0,59167.0,0.00025346]
[1724904997761,0.18122936,59169.0,59167.0,0.00025346]
[1724904998264,0.17322936,59169.0,59167.0,0.00025346]
[1724904998661,0.23532936,59169.0,59167.0,0.00025346]
[1724904999166,0.23532936,59169.0,59167.0,0.00625346]
[1724904999167,0.23632936,59169.0,59167.0,0.00625346]
[1724904999474,0.23632936,59169.0,59167.0,0.00925346]
[1724904999965,0.23632936,59169.0,59167.0,0.00625346]
[1724905000173,0.23732936,59169.0,59167.0,0.00925346]
[1724905002661,0.23732936,59169.0,59167.0,0.09373846]
[1724905003373,0.23732936,59169.0,59168.0,0.084484]
[1724905005365,0.23632936,59169.0,59168.0,0.084484]
[1724905006268,0.83632936,59169.0,59143.0,0.445319]
[1724905006469,0.83632936,59169.0,59155.0,0.084502]
[1724905006470,0.3608,59156.0,59155.0,0.084502]
[1724905006775,0.5516595,59156.0,59155.0,0.084502]
[1724905006967,0.1908595,59156.0,59155.0,0.084502]
[1724905007271,0.3608,59156.0,59155.0,0.084502]
[1724905007569,0.54561294,59156.0,59155.0,0.084502]
[1724905008567,0.54661294,59156.0,59155.0,0.090502]
[1724905009162,0.54561294,59156.0,59155.0,0.084502]
[1724905010070,0.54561294,59156.0,59155.0,0.085502]
[1724905011876,0.63011394,59156.0,59155.0,0.085502]
[1724905012175,0.70051394,59156.0,59155.0,0.085502]
[1724905012767,0.70051394,59156.0,59155.0,0.001]
[1724905012966,0.084502,59155.0,59150.0,0.00025346]
[1724905013179,0.445308,59151.0,59150.0,0.00025346]
[1724905013377,0.445308,59151.0,59150.0,0.08476246]
[1724905013578,0.62781665,59151.0,59150.0,0.08476246]
[1724905015076,0.62881665,59151.0,59150.0,0.09376246]
[1724905015574,0.62881665,59151.0,59150.0,0.00925346]
[1724905015780,0.62881665,59151.0,59150.0,0.00625346]
[1724905015972,0.62981665,59151.0,59150.0,0.00925346]
[1724905018970,0.26901665,59151.0,59150.0,0.00925346]
[1724905019181,0.62981665,59151.0,59150.0,0.00925346]